bitfinex/quotes_ETHUSD_20220226
["timestamp","ask_amount","ask_price","bid_price","bid_amount"]
[1645837492441,0.1406,2843.4,2842.5,1.7596]
[1645837492837,0.83072984,2843.3,2842.5,1.7596]
[1645837494239,1.1937703,2843.2,2842.5,1.7596]
[1645837494890,1.1937703,2843.2,2842.8,0.00578904]
[1645837495090,0.15915624,2843.3,2842.8,0.00578904]
[1645837495291,1.24960563,2843.7,2842.8,0.00578904]
[1645837495502,0.83095398,2843.6,2842.8,1.23886904]
[1645837495694,0.83095398,2843.5,2842.8,0.88556904]
[1645837495899,0.00240563,2843.7,2842.8,0.88556904]
[1645837495900,0.83335961,2843.7,2842.8,0.88556904]
[1645837496195,0.83335961,2843.7,2842.8,0.88556913]
[1645837496196,1.0651561,2843.3,2842.8,0.88556913]
[1645837496394,0.00240593,2843.7,2842.8,0.88556913]
[1645837496596,0.00240593,2843.7,2842.9,0.3533]
[1645837496797,0.00240593,2843.7,2842.9,5.61255]
[1645837496998,0.00240593,2843.7,2842.9,2.11255]
[1645837497193,0.00240593,2843.7,2842.9,2.75925]
[1645837497395,0.83243415,2843.9,2842.9,1.75925]
[1645837497595,0.83243415,2843.9,2843.0,0.3533]
[1645837497799,0.83243415,2843.9,2842.9,1.75925]
[1645837498197,0.83243415,2843.8,2842.9,1.75925]
[1645837498435,0.83243415,2843.7,2842.9,1.75925]
[1645837498630,0.00228223,2844.0,2842.9,1.75925]
[1645837498631,0.18330181,2843.8,2842.9,1.75925]
[1645837498832,0.832617,2843.7,2842.9,1.75925]
[1645837499029,1.03914739,2843.5,2842.9,1.75925]
[1645837499329,0.18416725,2844.0,2842.9,1.75925]
[1645837499532,0.83268104,2843.9,2842.9,1.75925]
[1645837499833,0.00189171,2843.7,2842.9,1.75925]
[1645837500234,1.3170782,2843.6,2842.9,1.75925]
[1645837500435,1.10785007,2843.1,2842.9,1.75925]
[1645837500635,0.20283756,2843.6,2843.1,0.96334402]
[1645837500860,0.83305682,2843.5,2843.1,0.96334402]
[1645837501436,0.00189175,2843.7,2843.1,0.96334402]
[1645837501636,0.00189175,2843.7,2843.1,1.84296402]
[1645837502082,0.83491586,2843.7,2843.1,1.84296402]
[1645837502380,0.8350299,2843.7,2843.1,1.84296402]
[1645837503585,0.00200579,2843.7,2843.1,1.84296402]
[1645837504182,0.83275629,2843.9,2843.1,1.84296402]
[1645837504582,0.00200579,2843.7,2843.1,1.84296402]
[1645837504982,0.00200579,2843.7,2843.1,2.19626402]
[1645837505285,0.00200579,2843.7,2843.3,0.3533]
[1645837505484,0.00200579,2843.7,2843.4,0.3533]
[1645837505948,0.00218677,2843.7,2843.5,3.5]
[1645837506155,0.00218677,2843.7,2843.6,1.75873]
[1645837506343,0.00218677,2843.7,2843.6,5.25873]
[1645837506747,0.09721637,2844.8,2843.6,6.61203]
[1645837506948,0.00263803,2844.2,2843.6,3.11203]
[1645837507246,0.00263803,2844.2,2843.6,1.75873]
[1645837507647,1.39415272,2844.1,2843.6,1.75873]
[1645837507848,0.20546045,2844.3,2843.6,1.75873]
[1645837508049,0.83305698,2844.2,2843.6,1.1042062]
[1645837508247,0.00218685,2844.0,2843.6,1.1042062]
[1645837508851,0.83524383,2844.0,2843.6,1.1042062]
[1645837509049,0.00218685,2844.0,2843.6,1.1042062]
[1645837509450,0.00240615,2843.9,2843.6,1.1042062]
[1645837510083,0.00122472,2843.9,2843.6,1.1042062]
[1645837510488,0.00363087,2843.9,2843.6,1.1042062]
[1645837510784,0.00240615,2843.9,2843.6,1.1042062]
[1645837511785,0.83307237,2844.2,2843.6,1.1042062]
[1645837511987,1.52920088,2844.7,2843.6,1.1042062]
[1645837512186,1.37609501,2844.7,2843.6,1.1042062]
[1645837512386,0.8337729,2844.6,2843.6,1.1042062]
[1645837512788,0.8337729,2844.6,2843.6,1.4575062]
[1645837512986,0.00213409,2844.3,2843.6,1.4575062]
[1645837513654,0.8337729,2844.6,2843.6,1.4575062]
[1645837513655,0.78590699,2844.6,2843.6,1.4575062]
[1645837513858,0.00853507,2844.7,2843.6,1.4575062]
[1645837514052,0.00853507,2844.7,2843.4,1.87934]
[1645837514053,0.00213409,2844.1,2843.5,0.3533]
[1645837514655,0.00213409,2844.1,2843.1,2.21997547]
[1645837515055,0.00213409,2844.1,2843.2,0.3533]
[1645837516473,1.07477824,2843.9,2843.6,1.75873]
[1645837516770,0.38481285,2844.5,2843.2,0.00548855]
[1645837516771,1.24416785,2843.3,2843.2,0.00548855]
[1645837517807,1.24416785,2843.3,2843.1,0.96883267]
[1645837518009,0.15445981,2843.4,2843.1,0.96883267]
[1645837518208,0.16414672,2843.8,2843.1,0.96883267]
[1645837518609,3.99677703,2843.8,2843.1,0.96883267]
[1645837518811,0.18340936,2843.6,2843.1,0.96883267]
[1645837519016,1.08467136,2843.5,2843.2,0.00548987]
[1645837519211,0.33926192,2843.4,2843.2,0.00548987]
[1645837519811,0.33926192,2843.4,2843.1,0.96334402]
[1645837520011,0.32049974,2843.4,2843.1,0.96334402]
[1645837520213,0.1406,2843.4,2843.2,0.00550004]
[1645837520416,0.65857105,2843.6,2843.2,0.00550004]
[1645837520619,0.66650869,2844.2,2843.2,0.00550004]
[1645837520864,0.00793764,2844.2,2843.2,0.00550004]
[1645837521061,0.00793764,2844.2,2843.1,0.96334402]
[1645837521460,0.00793866,2844.3,2843.2,0.00549996]
[1645837522261,0.79917105,2844.7,2843.1,2.19626402]
[1645837522461,0.65857105,2844.7,2843.1,2.19626402]
[1645837522660,0.00793866,2844.3,2843.2,0.00552021]
[1645837523062,0.00793866,2844.3,2843.5,5.0]
[1645837523264,0.00793866,2844.3,2843.8,0.3533]
[1645837523462,0.00103131,2844.3,2843.8,0.83396636]
[1645837523669,0.00103131,2844.3,2843.8,0.90145147]
[1645837523862,1.06991465,2845.1,2844.0,0.3533]
[1645837523863,0.00212397,2845.1,2844.0,0.3533]
[1645837524063,0.00239754,2844.4,2844.0,0.6533]
[1645837524264,0.00239754,2844.4,2844.1,0.1406]
[1645837524704,0.00958999,2844.5,2844.1,0.4939]
[1645837524904,0.00212397,2845.3,2844.1,0.4939]
[1645837525105,0.00212397,2845.3,2844.4,1.75819]
[1645837525306,0.00212397,2845.3,2844.4,21.6640525]
[1645837525514,10.5,2845.2,2842.9,12.1506442]
[1645837525710,10.5,2845.2,2841.4,0.25]
[1645837525711,0.01281062,2843.8,2841.4,0.25]
[1645837525912,0.01281062,2843.8,2841.0,2.83035391]
[1645837525913,0.01231907,2842.6,2841.0,1.82911058]
[1645837526118,0.249,2843.5,2840.8,0.84935601]
[1645837526119,0.01240281,2841.7,2840.8,0.84935601]
[1645837526313,1.72608765,2842.5,2840.6,0.00532316]
[1645837526314,5.0,2842.2,2840.6,0.00532316]
[1645837526514,0.249,2841.5,2840.3,0.14340398]
[1645837526713,0.249,2841.5,2839.8,6.2782409]
[1645837526714,0.249,2841.5,2840.6,0.00537428]
[1645837526915,0.249,2841.5,2840.1,0.00537428]
[1645837527113,0.249,2841.5,2839.9,5.02435601]
[1645837527114,0.249,2841.5,2840.2,0.88570428]
[1645837527315,0.17437652,2841.7,2840.3,0.1408]
[1645837527516,0.17074168,2841.8,2840.3,0.14617428]
[1645837528017,0.18629891,2841.6,2840.3,0.14617428]
[1645837528217,0.46238139,2841.8,2840.3,0.14617428]
[1645837528455,1.40699853,2841.4,2840.3,0.14617428]
[1645837528651,0.1406,2842.0,2840.3,14.79947428]
[1645837528850,0.425,2842.2,2840.6,0.3533]
[1645837528851,0.249,2842.2,2840.6,0.3533]
[1645837529051,0.249,2842.2,2840.8,0.3533]
[1645837529258,0.249,2842.2,2840.8,1.0]
[1645837529556,0.249,2842.2,2840.8,1.00537428]
[1645837529758,1.40363468,2841.4,2840.8,0.00537428]
[1645837529958,1.40363468,2841.4,2840.4,1.00537428]
[1645837530163,1.02387451,2842.3,2840.4,1.30537428]
[1645837530164,0.18124746,2842.0,2840.4,1.30537428]
[1645837530459,0.3533,2841.8,2840.4,0.00537428]
[1645837530662,11.1533,2841.6,2839.3,0.3533]
[1645837530858,11.1533,2841.6,2839.1,1.0]
[1645837530859,11.38011239,2841.1,2839.1,1.0]
[1645837531060,11.38011239,2841.1,2838.7,0.84935601]
[1645837531061,1.33780612,2839.6,2838.7,0.84935601]
[1645837531263,0.7783,2840.3,2839.6,0.81610912]
[1645837531559,0.94047845,2840.3,2839.6,0.81610912]
[1645837531961,0.20627753,2840.2,2839.6,0.81610912]
[1645837532207,1.45613846,2840.1,2839.8,0.00567125]
[1645837532405,1.45613846,2840.1,2838.7,1.0]
[1645837532406,10.8533,2839.9,2838.7,1.0]
[1645837532608,0.3533,2839.7,2838.1,7.921]
[1645837532807,0.3533,2839.3,2837.2,0.97975457]
[1645837533006,0.3533,2839.3,2837.3,0.1409]
[1645837533007,0.3533,2839.1,2837.3,0.1409]
[1645837533206,0.249,2838.8,2837.3,0.1409]
[1645837533504,0.249,2838.8,2837.4,0.00535023]
[1645837533505,0.425,2838.7,2837.4,0.00535023]
[1645837533705,0.425,2839.4,2837.5,0.13920229]
[1645837533906,0.425,2839.4,2837.6,0.14455252]
[1645837534108,0.425,2839.4,2837.4,0.84935601]
[1645837534309,0.59645736,2839.4,2837.5,1.0]
[1645837534507,0.59645736,2839.4,2838.4,0.00510111]
[1645837534508,1.1814073,2838.8,2838.4,0.00510111]
[1645837535408,1.1814073,2838.8,2837.7,0.88109]
[1645837535608,1.1814073,2838.8,2837.5,1.0]
[1645837535609,1.4304073,2838.8,2837.5,1.0]
[1645837535852,1.4304073,2838.8,2838.5,0.00581902]
[1645837536253,0.249,2838.8,2838.5,1.902e-05]
[1645837537054,0.3899,2838.8,2837.4,3.5]
[1645837537253,0.3899,2838.8,2837.3,1.76223]
[1645837537456,0.3899,2838.8,2837.2,2.20331]
[1645837537654,0.3899,2838.8,2837.2,1.90331]
[1645837539617,0.3899,2838.8,2837.9,0.00510197]
[1645837540506,0.249,2838.8,2837.9,0.00510197]
[1645837540708,0.249,2838.8,2837.3,0.0053168]
[1645837540709,0.249,2838.8,2838.2,0.00581946]
[1645837540911,1.12093924,2838.3,2838.2,0.00581946]
[1645837541113,0.249,2838.8,2838.2,1.946e-05]
[1645837541114,0.549,2838.8,2838.2,1.946e-05]
[1645837541308,0.1409,2838.7,2838.2,1.946e-05]
[1645837541509,0.32341804,2838.7,2837.0,0.0053168]
[1645837541911,3.82341804,2838.7,2837.0,0.0053168]
[1645837542109,0.19740509,2838.6,2837.0,0.0053168]
[1645837542314,1.26803304,2837.8,2836.8,0.0053168]
[1645837542521,1.51703304,2837.8,2836.8,0.0053168]
[1645837542715,3.925,2837.7,2836.6,0.0053168]
[1645837542915,0.1409,2837.6,2836.4,0.0053168]
[1645837543113,0.5659,2837.6,2836.2,0.0053168]
[1645837543354,0.19424872,2837.5,2836.2,0.0053168]
[1645837543555,0.19424872,2837.5,2835.9,0.0053168]
[1645837543556,0.5659,2837.4,2835.9,0.0053168]
[1645837543756,1.04098359,2837.7,2835.9,1.7684568]
[1645837543961,0.04098359,2837.7,2835.9,1.7684568]
[1645837544358,0.04098359,2837.7,2836.7,0.00509639]
[1645837544359,0.28998359,2837.7,2836.7,0.00509639]
[1645837544560,0.28998359,2837.7,2836.7,9.639e-05]
[1645837544762,0.249,2837.4,2836.7,9.639e-05]
[1645837544964,0.15577283,2837.2,2836.7,9.639e-05]
[1645837545161,0.15577283,2837.2,2835.9,0.0053168]
[1645837545162,0.2147332,2837.0,2835.9,0.0053168]
[1645837545359,0.425,2836.9,2835.9,0.0053168]
[1645837545558,1.24041688,2836.5,2835.9,0.0053168]
[1645837545763,0.249,2836.7,2835.7,3.9811725]
[1645837545962,0.249,2836.8,2835.8,0.0053168]
[1645837547207,0.22026742,2836.7,2835.8,0.0053168]
[1645837547406,1.28016062,2836.0,2835.8,0.0053168]
[1645837547611,1.28016062,2836.0,2835.7,3.9811725]
[1645837547808,1.1409,2836.8,2835.7,3.9811725]
[1645837548007,0.249,2836.7,2835.8,0.0053168]
[1645837548509,0.249,2836.7,2835.7,3.8864893]
[1645837548807,1.09248922,2836.5,2835.7,3.8864893]
[1645837549006,1.09248922,2836.5,2836.1,0.00582533]
[1645837549810,0.249,2836.7,2836.1,0.00582533]
[1645837550010,2.8117,2837.2,2836.1,0.00582533]
[1645837550011,2.2458,2837.2,2836.1,0.00582533]
[1645837550316,2.2458,2837.2,2836.2,0.00582524]
[1645837550509,1.0,2837.2,2836.2,0.00582524]
[1645837550963,1.05642058,2836.9,2836.2,0.00582524]
[1645837551162,1.05642058,2836.9,2835.8,4.5]
[1645837551362,1.0,2837.2,2836.6,0.00582453]
[1645837552661,1.0,2837.2,2836.6,0.00582458]
[1645837553864,1.0,2837.2,2836.6,0.00548135]
[1645837554466,1.0,2837.2,2836.7,0.3533]
[1645837554707,1.0,2837.2,2836.7,0.3]
[1645837554908,1.0,2837.2,2836.6,1.24024135]
[1645837555108,1.0,2837.2,2836.6,1.54024135]
[1645837555306,1.0,2837.2,2836.7,0.3]
[1645837556510,1.52249774,2837.2,2836.7,0.3]
[1645837556713,1.52249774,2837.2,2836.6,0.30548136]
[1645837556911,1.52249774,2837.2,2836.6,0.00548136]
[1645837557113,1.52249774,2837.2,2836.5,0.00528837]
[1645837557410,1.52249774,2837.2,2836.6,0.0055783]
[1645837557611,1.52249774,2837.2,2836.6,0.3588783]
[1645837557612,0.52249774,2837.2,2836.6,0.3588783]
[1645837557811,0.52249774,2837.2,2836.6,0.0055783]
[1645837558647,0.00889241,2838.2,2836.8,0.3533]
[1645837558850,0.00889241,2838.2,2837.2,0.88123]
[1645837559248,0.00889241,2838.2,2837.3,0.35858837]
[1645837559648,0.00889241,2838.2,2837.3,0.00528837]
[1645837559847,0.00889478,2838.3,2837.3,0.00528837]
[1645837560750,1.09681773,2838.2,2837.3,0.00528837]
[1645837561153,1.09681773,2838.2,2837.3,0.30528837]
[1645837561355,1.09681773,2838.2,2837.3,0.00528837]
[1645837561555,1.2480413,2837.7,2837.3,0.00528837]
[1645837561762,1.2480413,2837.7,2837.1,0.00528837]
[1645837562104,5.0,2837.0,2836.9,0.00528837]
[1645837562293,5.0,2837.0,2836.4,0.00528837]
[1645837562592,5.0,2837.0,2836.3,0.88159]
[1645837562993,1.1726515,2836.8,2836.3,0.88159]
[1645837563199,1.7749515,2836.8,2836.0,0.00528837]
[1645837563394,1.7749515,2836.8,2835.8,0.00528837]
[1645837563395,1.07880982,2836.8,2835.8,0.00528837]
[1645837563595,0.1409,2836.7,2835.8,0.00528837]
[1645837563793,0.4942,2836.7,2835.8,0.00528837]
[1645837563995,1.05705841,2836.0,2835.8,0.00528837]
[1645837564195,1.05705841,2836.0,2835.7,3.8864893]
[1645837564596,1.05705841,2836.0,2835.7,3.90969408]
[1645837564993,0.4942,2836.7,2835.7,3.90969408]
[1645837565194,0.4942,2836.7,2835.8,0.00528837]
[1645837565595,1.4942,2836.7,2835.8,0.00528837]
[1645837565866,1.69166591,2836.7,2836.1,0.00580041]
[1645837566067,0.3533,2836.5,2836.1,0.00580041]
[1645837566467,0.53518359,2836.5,2836.1,0.00580041]
[1645837566669,0.93009553,2836.4,2836.1,0.00580041]
[1645837566867,1.43079869,2836.4,2836.1,0.00580041]
[1645837567069,0.2912628,2836.3,2836.2,2.4e-07]
[1645837567268,0.3533,2836.0,2835.1,0.00528837]
[1645837567467,0.3533,2836.0,2834.1,7.45]
[1645837567468,16.1533,2835.8,2834.4,0.00528837]
[1645837567672,11.1533,2835.6,2834.4,0.00528837]
[1645837567870,0.3533,2834.9,2833.3,0.00528837]
[1645837568068,1.0,2835.0,2833.4,0.07454843]
[1645837568069,0.3533,2834.7,2833.4,0.07454843]
[1645837568273,0.3533,2834.2,2833.5,0.07454843]
[1645837568472,0.3533,2834.2,2832.8,0.1411]
[1645837568768,0.3533,2834.0,2832.8,0.1411]
[1645837568967,0.3533,2834.0,2832.9,0.04206333]
[1645837569613,0.52716463,2834.1,2833.4,0.00508579]
[1645837569802,0.3533,2834.1,2833.4,0.00508579]
[1645837570406,0.53131209,2834.1,2833.4,0.00508579]
[1645837570609,0.3533,2834.0,2833.6,0.00508534]
[1645837570810,0.4944,2834.0,2833.6,0.00508534]
[1645837571013,0.3533,2834.0,2833.6,0.00508534]
[1645837571311,0.17381138,2834.1,2833.6,0.00508534]
[1645837571514,0.17381138,2834.1,2832.9,0.04206333]
[1645837571515,1.0,2834.3,2833.3,0.1411]
[1645837571707,0.18427063,2835.0,2833.3,0.1411]
[1645837571908,1.1719,2835.2,2833.4,1.07455771]
[1645837572109,1.1719,2835.2,2833.9,0.88233]
[1645837572308,0.00252642,2835.8,2834.4,5.0]
[1645837572517,0.00252642,2835.8,2834.8,5.01240564]
[1645837572709,0.00252642,2835.8,2834.9,15.0783]
[1645837573108,0.00252642,2835.8,2835.3,1.0]
[1645837573347,0.00252642,2835.8,2835.3,1.3]
[1645837573348,0.00252758,2835.8,2835.3,1.3]
[1645837573549,0.00252758,2835.8,2835.4,0.1409]
[1645837574148,0.00252758,2835.8,2835.4,0.4942]
[1645837574350,0.00252802,2835.8,2835.5,0.00541033]
[1645837574550,0.00252802,2835.8,2835.6,0.1409]
[1645837575349,0.00453379,2835.8,2835.6,0.14615345]
[1645837575554,0.00200577,2835.8,2835.6,0.14615345]
[1645837576157,0.00200577,2835.8,2835.6,1.02783345]
[1645837576353,0.00200577,2835.8,2835.6,1.32783345]
[1645837576554,1.42175062,2836.8,2835.6,1.32258]
[1645837576755,0.00200577,2835.8,2835.7,0.00525941]
[1645837576957,0.00200577,2835.8,2835.6,1.32783345]
[1645837577804,5.0,2837.0,2835.6,1.32258]
[1645837578003,5.0,2837.0,2835.7,0.00525941]
[1645837578203,5.0,2837.0,2835.9,0.87940769]
[1645837578405,5.0,2837.0,2836.0,0.00525941]
[1645837578604,5.0,2837.0,2836.0,0.30525941]
[1645837578806,5.0,2837.0,2836.1,0.00525941]
[1645837579204,5.0,2837.0,2835.7,0.30525941]
[1645837579403,0.3533,2836.9,2835.7,0.25525941]
[1645837579605,0.3533,2836.9,2835.6,0.1409]
[1645837579805,0.3533,2836.9,2835.7,0.07451772]
[1645837580006,5.0,2837.0,2835.7,0.07451772]
[1645837580206,5.0,2837.0,2835.9,0.88171]
[1645837580410,0.3533,2836.9,2835.9,0.88171]
[1645837580707,5.0,2837.0,2835.9,0.88171]
[1645837580949,6.25972587,2837.0,2835.9,0.88171]
[1645837581150,6.25972587,2837.0,2836.0,0.07451074]
[1645837581353,0.00230808,2836.6,2836.0,0.37451074]
[1645837581551,0.00230808,2836.6,2836.0,0.3]
[1645837581954,0.00230808,2836.6,2835.6,1.14665188]
[1645837582150,0.00230808,2836.6,2835.7,0.0745169]
[1645837582756,0.0024632,2836.2,2835.7,0.4278169]
[1645837582958,0.0024632,2836.2,2835.9,0.88169]
[1645837583161,0.0024632,2836.2,2836.0,0.3745169]
[1645837583358,0.0024632,2836.2,2836.1,0.0745169]
[1645837583558,5.0,2837.0,2836.1,0.0745169]
[1645837583559,4.50221689,2837.0,2836.1,0.0745169]
[1645837583961,0.0024632,2836.2,2836.1,0.0745169]
[1645837584159,0.0024632,2836.2,2836.0,0.3]
[1645837584606,0.0024632,2836.2,2836.1,0.07451171]
[1645837584802,4.50221689,2837.0,2836.1,0.07451171]
[1645837585601,4.50221689,2837.0,2836.1,0.07973699]
[1645837585802,4.50221689,2837.0,2836.2,0.07451171]
[1645837586808,4.50221689,2837.0,2836.1,0.00522528]
[1645837587010,4.50221689,2837.0,2836.2,0.07450908]
[1645837587607,0.00225702,2836.7,2836.2,0.07450908]
[1645837588452,0.00225702,2836.7,2836.1,0.00522528]
[1645837588656,6.09440374,2837.0,2835.9,0.00522528]
[1645837588853,6.09440374,2837.0,2835.7,0.00522528]
[1645837589051,6.09440374,2837.0,2835.8,0.07451985]
[1645837589651,1.43497241,2836.3,2835.8,0.07451985]
[1645837590856,4.85551689,2837.0,2835.8,0.07451985]
[1645837590857,1.55643456,2837.0,2835.8,0.07451985]
[1645837591063,1.55643456,2837.0,2836.3,10.8]
[1645837591260,1.55643456,2837.0,2836.6,0.3533]
[1645837591458,1.55643456,2837.0,2836.8,0.3533]
[1645837591658,1.55643456,2837.0,2836.9,1.425]
[1645837591964,1.55643456,2837.0,2836.8,1.025]
[1645837592206,1.55643456,2837.0,2836.9,0.07449559]
[1645837592405,1.55870839,2837.0,2836.9,0.07449559]
[1645837592906,1.55870839,2837.0,2836.9,0.42779559]
[1645837593705,0.7665756,2837.0,2836.9,0.42779559]
[1645837593904,0.7665756,2837.0,2836.9,0.3533]
[1645837594107,0.7665756,2837.0,2836.9,1.3533]
[1645837594907,0.7665756,2837.0,2836.9,1.7783]
[1645837597164,0.7665756,2837.0,2836.9,1.425]
[1645837597561,0.7665756,2837.0,2836.9,12.225]
[1645837597761,0.7665756,2837.0,2836.9,13.225]
[1645837598562,0.7665756,2837.0,2836.9,2.425]
[1645837598761,0.7665756,2837.0,2836.9,1.425]
[1645837600206,0.7665756,2837.0,2836.9,12.225]
[1645837600607,0.7665756,2837.0,2836.9,13.225]
[1645837601210,0.7665756,2837.0,2836.9,2.425]
[1645837601613,0.7665756,2837.0,2836.9,1.425]
[1645837602612,0.7665756,2837.0,2836.8,2.4813]
[1645837602813,0.7665756,2837.0,2836.8,1.4813]
[1645837603017,0.7665756,2837.0,2836.5,0.00522528]
[1645837603213,0.7665756,2837.0,2836.4,1.76292]
[1645837603876,0.7665756,2837.0,2836.0,0.00522528]
[1645837604176,0.7665756,2837.0,2836.2,0.00522528]
[1645837604376,0.00208016,2836.8,2836.0,1.76292]
[1645837604576,0.00208016,2836.8,2836.1,0.00522528]
[1645837604778,0.00208016,2836.8,2836.1,0.3]
[1645837605176,1.1198756,2837.0,2836.1,0.3]
[1645837605377,1.20950044,2836.5,2836.2,0.00522528]
[1645837605576,1.20950044,2836.5,2836.1,1.76306]
[1645837605775,1.20950044,2836.5,2836.2,0.3]
[1645837606582,0.00208016,2836.6,2836.2,0.3]
[1645837606781,0.00208016,2836.5,2836.2,0.3]
[1645837606982,0.00208016,2836.5,2836.2,0.30522528]
[1645837607201,0.00208016,2836.5,2836.2,0.3]
[1645837607702,0.7665756,2837.0,2836.2,0.3]
[1645837607899,0.00197543,2836.5,2836.2,0.30522528]
[1645837608101,0.00197543,2836.5,2836.2,0.3]
[1645837608300,0.71855103,2837.0,2836.2,0.3]
[1645837608501,1.07185103,2837.0,2836.2,0.30522528]
[1645837609306,0.71855103,2837.0,2836.2,0.30522528]
[1645837609505,0.71855103,2837.0,2836.4,0.88152]
[1645837609705,0.71855103,2837.0,2836.4,1.48152]
[1645837611559,0.0025207,2836.8,2836.4,1.48152]
[1645837612059,1.38129048,2836.8,2836.4,1.48152]
[1645837612859,0.0025207,2836.7,2836.4,1.48152]
[1645837613860,0.0050414,2836.7,2836.4,1.48152]
[1645837614062,0.0025207,2836.7,2836.2,0.00522528]
[1645837614263,0.0025207,2836.7,2836.1,1.76306]
[1645837614460,1.0351653,2836.2,2835.8,0.88174]
[1645837614707,0.3558207,2836.7,2835.9,0.00522528]
[1645837614904,0.3558207,2836.7,2835.8,0.88174]
[1645837615103,0.71855103,2837.0,2835.9,0.00522528]
[1645837615104,0.3533,2836.9,2835.9,0.00522528]
[1645837615310,0.00252029,2836.6,2835.9,0.00522528]
[1645837615503,0.00252029,2836.6,2835.9,0.30522528]
[1645837616107,1.27282062,2836.3,2835.9,0.30522528]
[1645837616307,1.27282062,2836.3,2835.9,0.3]
[1645837617108,10.5,2836.2,2835.4,6.57094898]
[1645837617311,10.5,2836.2,2834.0,19.02255]
[1645837617517,0.16463606,2835.9,2833.2,1.71277229]
[1645837617710,0.16463606,2835.9,2832.8,1.71359349]
[1645837617711,0.01224015,2834.8,2832.8,1.71359349]
[1645837617916,0.01238984,2834.5,2832.9,0.85712034]
[1645837618117,0.6033,2834.3,2832.3,0.85712034]
[1645837618374,0.01269503,2833.3,2832.2,0.98112934]
[1645837618573,0.01269503,2833.3,2832.2,0.124009]
[1645837618574,0.3533,2833.1,2832.2,0.124009]
[1645837618772,0.3533,2833.1,2831.6,1.25]
[1645837618773,0.3533,2832.9,2831.7,0.85712034]
[1645837618971,0.3533,2832.7,2831.6,1.25]
[1645837619177,0.3533,2832.5,2831.4,1.07997129]
[1645837619377,0.6033,2832.5,2830.8,0.85712034]
[1645837619573,0.6033,2832.5,2831.7,0.5]
[1645837619775,0.25,2832.5,2831.7,0.5]
[1645837619974,0.25,2832.5,2831.0,0.20946484]
[1645837620175,0.2474,2833.3,2831.2,10.8]
[1645837620378,0.1411,2833.5,2832.3,1.01916344]
[1645837620583,2.9683,2833.7,2832.0,11.1]
[1645837620777,2.9683,2833.7,2832.6,10.8]
[1645837620980,2.2784,2834.1,2832.6,10.8]
[1645837620981,1.1468,2834.1,2832.6,10.8]
[1645837621180,0.1411,2834.4,2833.1,10.8]
[1645837621383,10.4327,2834.6,2832.8,0.18011557]
[1645837621384,2.8459,2834.6,2832.8,0.18011557]
[1645837621582,3.5,2834.5,2832.9,0.3]
[1645837621782,3.5,2834.5,2832.7,0.00569689]
[1645837621783,0.25,2834.2,2832.7,0.00569689]
[1645837621981,0.3533,2834.0,2832.7,0.00569689]
[1645837622209,0.1411,2833.9,2832.7,0.00569689]
[1645837622410,0.01289878,2833.8,2832.7,0.00569689]
[1645837622708,0.01289878,2833.8,2832.9,6.783e-05]
[1645837622709,0.01202764,2833.1,2832.9,6.783e-05]
[1645837622911,0.01202764,2833.1,2830.9,0.5]
[1645837622912,0.3533,2832.7,2830.9,0.5]
[1645837623115,0.25,2832.4,2830.9,0.5]
[1645837623409,0.6033,2832.0,2830.4,1.0]
[1645837623607,0.6033,2832.0,2830.5,0.00520763]
[1645837624008,0.6033,2832.0,2830.5,1.00520763]
[1645837624009,0.3533,2832.0,2830.5,1.00520763]
[1645837624210,0.3533,2831.9,2830.5,1.0]
[1645837624409,0.3533,2831.9,2830.6,0.00520763]
[1645837624614,0.3533,2831.9,2830.6,11.8]
[1645837624813,0.3533,2831.9,2830.7,0.00520763]
[1645837625012,0.25,2831.8,2830.7,0.00520763]
[1645837625211,0.6033,2831.8,2830.2,0.00520763]
[1645837625619,0.3533,2831.3,2830.2,0.00520763]
[1645837625860,0.25,2831.2,2830.2,0.00520763]
[1645837626063,1.4869754,2831.2,2830.2,0.00520763]
[1645837626564,1.7869754,2831.2,2830.2,0.00520763]
[1645837626765,0.1413,2831.1,2830.2,0.00520763]
[1645837627263,0.1413,2831.1,2829.1,1.0]
[1645837627264,1.23711,2830.9,2829.1,1.0]
[1645837627464,1.23711,2830.9,2828.9,3.9811725]
[1645837627465,0.36766131,2830.7,2830.6,8.727e-05]
[1645837627665,1.5663,2830.7,2830.1,0.00013983]
[1645837627866,1.30868163,2830.7,2828.9,7.4811725]
[1645837628062,0.1868946,2830.8,2829.0,3.5]
[1645837628272,1.0,2830.0,2829.7,1.01197108]
[1645837628662,0.19868173,2831.1,2829.7,1.01197108]
[1645837628866,1.0,2831.1,2829.2,1.0]
[1645837629267,0.3533,2831.0,2829.2,1.3]
[1645837629466,0.25,2830.7,2829.2,1.3]
[1645837629916,0.71855103,2830.0,2829.2,1.3]
[1645837630921,0.71855103,2830.0,2829.7,2.126528]
[1645837631117,0.71855103,2830.0,2829.7,1.0]
[1645837631319,0.71855103,2830.0,2829.7,0.3]
[1645837631818,1.0,2831.0,2829.7,5.425]
[1645837632018,1.0,2831.0,2829.5,3.5]
[1645837632019,0.13819997,2831.2,2830.0,1.0]
[1645837632221,0.00270432,2830.3,2830.0,1.3]
[1645837632717,0.00270432,2830.3,2830.0,1.0]
[1645837632918,0.00270432,2830.3,2829.9,0.3]
[1645837633116,0.00270432,2830.3,2829.7,0.00576386]
[1645837633560,0.00270458,2830.3,2830.0,0.00535073]
[1645837635762,0.00485012,2830.3,2830.0,0.01053373]
[1645837635971,0.00214554,2830.3,2830.0,0.005183]
[1645837636369,1.0,2830.1,2830.0,8.3e-05]
[1645837636573,1.4413,2830.1,2830.0,8.3e-05]
[1645837636771,1.81921736,2830.1,2830.0,8.3e-05]
[1645837636971,1.6339831,2830.1,2829.0,1.36141447]
[1645837637215,0.1413,2830.0,2829.1,0.00517937]
[1645837637415,3.1353,2830.4,2829.1,0.00517937]
[1645837637615,1.0,2829.7,2829.1,0.00517937]
[1645837637814,1.0,2829.7,2828.9,3.9811725]
[1645837638213,1.0,2829.7,2829.6,0.00458294]
[1645837639014,1.0,2829.7,2829.0,0.00517937]
[1645837639215,1.0,2829.7,2828.9,3.9811725]
[1645837639216,0.3533,2829.6,2828.9,3.9811725]
[1645837639414,1.49353641,2829.7,2829.5,0.00539524]
[1645837639614,1.3,2829.6,2829.5,0.00539524]
[1645837639817,1.48759053,2829.6,2829.5,0.00539524]